[Event "*** SCC Grand Prix: Titled Tuesday Blitz"]
[Site "Chess.com"]
[Date "2020.10.13"]
[Round "1"]
[White "AleksibFan"]
[Black "barriochess"]
[Result "0-1"]
[WhiteElo "2563"]
[BlackElo "2264"]
[TimeControl "180+1"]
[EndTime "10:07:18 PDT"]
[Termination "barriochess won on time"]

1. d4 {[%clk 0:03:00.9]} 1... d5 {[%clk 0:02:58.6]} 2. Nf3 {[%clk 0:03:00.4]}
2... e6 {[%clk 0:02:58.7]} 3. g3 {[%clk 0:02:58.9]} 3... c5 {[%clk 0:02:58.3]}
4. Bg2 {[%clk 0:02:59]} 4... Nc6 {[%clk 0:02:58.8]} 5. O-O {[%clk 0:02:58.8]}
5... Nf6 {[%clk 0:02:59.3]} 6. b3 {[%clk 0:02:54.9]} 6... Be7 {[%clk 0:02:59.1]}
7. Bb2 {[%clk 0:02:54]} 7... O-O {[%clk 0:02:58.2]} 8. e3 {[%clk 0:02:53.3]}
8... Ne4 {[%clk 0:02:57.4]} 9. Nbd2 {[%clk 0:02:26]} 9... f5 {[%clk 0:02:55.2]}
10. c4 {[%clk 0:02:21.7]} 10... Bf6 {[%clk 0:02:52]} 11. cxd5 {[%clk 0:02:12.4]}
11... exd5 {[%clk 0:02:51.3]} 12. Ne5 {[%clk 0:01:49.2]} 12... Nxe5 {[%clk
0:02:45.5]} 13. dxe5 {[%clk 0:01:48.9]} 13... Be7 {[%clk 0:02:46]} 14. f3 {[%clk
0:01:46.1]} 14... Nxd2 {[%clk 0:02:44.1]} 15. Qxd2 {[%clk 0:01:47]} 15... Be6
{[%clk 0:02:44.4]} 16. f4 {[%clk 0:01:46.2]} 16... Qd7 {[%clk 0:02:39.9]} 17.
Rfd1 {[%clk 0:01:44.8]} 17... Rfd8 {[%clk 0:02:39.7]} 18. Qe2 {[%clk 0:01:43.3]}
18... Qe8 {[%clk 0:02:34.4]} 19. Rd2 {[%clk 0:01:41.9]} 19... a6 {[%clk
0:02:32.2]} 20. Rad1 {[%clk 0:01:40.8]} 20... Qf7 {[%clk 0:02:32.1]} 21. Bc3
{[%clk 0:01:39.2]} 21... b5 {[%clk 0:02:19.8]} 22. Bf3 {[%clk 0:01:25.1]} 22...
b4 {[%clk 0:02:13.1]} 23. Bb2 {[%clk 0:01:24.2]} 23... Ra7 {[%clk 0:02:09.4]}
24. Qg2 {[%clk 0:01:19.7]} 24... Rad7 {[%clk 0:02:08.9]} 25. g4 {[%clk 0:01:18]}
25... g6 {[%clk 0:02:06]} 26. h3 {[%clk 0:01:02.4]} 26... Kf8 {[%clk 0:02:03.7]}
27. a3 {[%clk 0:00:54.5]} 27... a5 {[%clk 0:02:03.3]} 28. axb4 {[%clk
0:00:52.7]} 28... axb4 {[%clk 0:02:03.4]} 29. Kh2 {[%clk 0:00:48.5]} 29... c4
{[%clk 0:01:50.7]} 30. Bd4 {[%clk 0:00:40.8]} 30... c3 {[%clk 0:01:47.2]} 31.
Ra2 {[%clk 0:00:40]} 31... Rc8 {[%clk 0:01:44.8]} 32. Rda1 {[%clk 0:00:36.7]}
32... Bc5 {[%clk 0:01:43.5]} 33. Ra8 {[%clk 0:00:32.5]} 33... Rc7 {[%clk
0:01:25.6]} 34. gxf5 {[%clk 0:00:30.2]} 34... gxf5 {[%clk 0:01:22.5]} 35. Bxc5+
{[%clk 0:00:26.6]} 35... Rxc5 {[%clk 0:01:22.1]} 36. R1a7 {[%clk 0:00:26.7]}
36... Qg6 {[%clk 0:01:14]} 37. Qc2 {[%clk 0:00:18.1]} 37... Ke8 {[%clk
0:00:46.7]} 38. Ra2 {[%clk 0:00:17.3]} 38... Kd8 {[%clk 0:00:43.1]} 39. R8a7
{[%clk 0:00:16]} 39... h5 {[%clk 0:00:41.3]} 40. Ra8 {[%clk 0:00:11.2]} 40... h4
{[%clk 0:00:40.8]} 41. Rxc8+ {[%clk 0:00:10.7]} 41... Rxc8 {[%clk 0:00:39.7]}
42. Qf2 {[%clk 0:00:08.6]} 42... Qg3+ {[%clk 0:00:37.5]} 0-1

[Event "*** SCC Grand Prix: Titled Tuesday Blitz"]
[Site "Chess.com"]
[Date "2020.10.13"]
[Round "1"]
[White "Orest_Vovk"]
[Black "bgfbfbgfbgfgf"]
[Result "0-1"]
[WhiteElo "2404"]
[BlackElo "2777"]
[TimeControl "180+1"]
[EndTime "10:07:20 PDT"]
[Termination "bgfbfbgfbgfgf won on time"]

1. d4 {[%clk 0:02:53.6]} 1... Nf6 {[%clk 0:02:55.1]} 2. Bf4 {[%clk 0:02:52.8]}
2... g6 {[%clk 0:02:54.7]} 3. e3 {[%clk 0:02:47.7]} 3... Bg7 {[%clk 0:02:49]} 4.
h3 {[%clk 0:02:47.6]} 4... O-O {[%clk 0:02:48.5]} 5. Nf3 {[%clk 0:02:44]} 5...
d6 {[%clk 0:02:49.4]} 6. Be2 {[%clk 0:02:43.1]} 6... Nbd7 {[%clk 0:02:48.8]} 7.
O-O {[%clk 0:02:40.2]} 7... b6 {[%clk 0:02:48.8]} 8. Nbd2 {[%clk 0:02:39.1]}
8... Bb7 {[%clk 0:02:40.7]} 9. c3 {[%clk 0:02:38.8]} 9... Re8 {[%clk 0:02:38.3]}
10. Bh2 {[%clk 0:02:35.4]} 10... e5 {[%clk 0:02:26]} 11. dxe5 {[%clk 0:02:22.2]}
11... dxe5 {[%clk 0:02:26.9]} 12. Nc4 {[%clk 0:02:21.9]} 12... Ne4 {[%clk
0:02:26.8]} 13. a4 {[%clk 0:02:08.8]} 13... a5 {[%clk 0:02:25.7]} 14. Qc2 {[%clk
0:02:04.9]} 14... Qe7 {[%clk 0:02:21.3]} 15. Rad1 {[%clk 0:01:59.5]} 15... Rad8
{[%clk 0:02:19.4]} 16. Na3 {[%clk 0:01:41.1]} 16... Nd6 {[%clk 0:01:57.2]} 17.
Nb5 {[%clk 0:01:20]} 17... Nxb5 {[%clk 0:01:50.9]} 18. Bxb5 {[%clk 0:01:12.3]}
18... Bxf3 {[%clk 0:01:49.4]} 19. gxf3 {[%clk 0:01:11.8]} 19... Qe6 {[%clk
0:01:48.8]} 20. Kg2 {[%clk 0:01:00.6]} 20... c6 {[%clk 0:01:46.7]} 21. Be2
{[%clk 0:00:53.3]} 21... Qe7 {[%clk 0:01:16.2]} 22. Qe4 {[%clk 0:00:44]} 22...
Rc8 {[%clk 0:01:11]} 23. Qg4 {[%clk 0:00:22.9]} 23... Nc5 {[%clk 0:00:59.9]} 24.
Bc4 {[%clk 0:00:13.7]} 24... Rcd8 {[%clk 0:00:52.4]} 25. b3 {[%clk 0:00:12.3]}
25... h5 {[%clk 0:00:46.5]} 26. Qxg6 {[%clk 0:00:09.7]} 26... h4 {[%clk
0:00:34.4]} 27. Qg4 {[%clk 0:00:07.3]} 27... Kf8 {[%clk 0:00:31.1]} 28. Kh1
{[%clk 0:00:07.1]} 28... Qf6 {[%clk 0:00:29.8]} 29. Rxd8 {[%clk 0:00:05.6]}
29... Rxd8 {[%clk 0:00:30.7]} 30. Rg1 {[%clk 0:00:05.8]} 30... Rd2 {[%clk
0:00:27]} 31. Qc8+ {[%clk 0:00:05.8]} 31... Rd8 {[%clk 0:00:27]} 32. Qc7 {[%clk
0:00:05.7]} 32... Qxf3+ {[%clk 0:00:26.8]} 33. Rg2 {[%clk 0:00:06.1]} 33... Rd1+
{[%clk 0:00:27]} 34. Bg1 {[%clk 0:00:05.6]} 34... Qxh3+ {[%clk 0:00:27.3]} 35.
Rh2 {[%clk 0:00:05.6]} 35... Qf3+ {[%clk 0:00:27.5]} 36. Rg2 {[%clk 0:00:04.6]}
36... h3 {[%clk 0:00:25.6]} 37. Qc8+ {[%clk 0:00:04.9]} 37... Ke7 {[%clk
0:00:25]} 38. Qc7+ {[%clk 0:00:04.9]} 38... Rd7 {[%clk 0:00:25.3]} 0-1

[Event "*** SCC Grand Prix: Titled Tuesday Blitz"]
[Site "Chess.com"]
[Date "2020.10.13"]
[Round "1"]
[White "frederiksvane"]
[Black "AsaHoffmann"]
[Result "1-0"]
[WhiteElo "2668"]
[BlackElo "2331"]
[TimeControl "180+1"]
[EndTime "10:07:20 PDT"]
[Termination "frederiksvane won by resignation"]

1. e4 {[%clk 0:03:00.9]} 1... d6 {[%clk 0:02:55.2]} 2. d4 {[%clk 0:03:01]} 2...
c6 {[%clk 0:02:54.7]} 3. Nf3 {[%clk 0:03:00.9]} 3... Bg4 {[%clk 0:02:53.8]} 4.
Nbd2 {[%clk 0:02:59.7]} 4... Nf6 {[%clk 0:02:50]} 5. Bd3 {[%clk 0:02:59.7]} 5...
e6 {[%clk 0:02:48.3]} 6. h3 {[%clk 0:02:59.5]} 6... Bh5 {[%clk 0:02:47.6]} 7.
Qe2 {[%clk 0:02:59.2]} 7... Be7 {[%clk 0:02:46.6]} 8. c3 {[%clk 0:02:57.3]} 8...
d5 {[%clk 0:02:46.3]} 9. e5 {[%clk 0:02:56.8]} 9... Nfd7 {[%clk 0:02:46.1]} 10.
Nb3 {[%clk 0:02:51]} 10... c5 {[%clk 0:02:44.7]} 11. dxc5 {[%clk 0:02:46.9]}
11... Nc6 {[%clk 0:02:42]} 12. g4 {[%clk 0:02:37.5]} 12... Bg6 {[%clk
0:02:36.3]} 13. Bb5 {[%clk 0:02:32.1]} 13... Nxc5 {[%clk 0:02:32]} 14. Nxc5
{[%clk 0:02:23.6]} 14... Bxc5 {[%clk 0:02:30]} 15. Be3 {[%clk 0:02:23.2]} 15...
Bxe3 {[%clk 0:02:22]} 16. Qxe3 {[%clk 0:02:24.1]} 16... Be4 {[%clk 0:02:20]} 17.
O-O {[%clk 0:02:13.4]} 17... Bxf3 {[%clk 0:02:15.8]} 18. Qxf3 {[%clk 0:02:09.6]}
18... O-O {[%clk 0:02:15.1]} 19. Qe3 {[%clk 0:02:00]} 19... d4 {[%clk
0:01:58.9]} 20. cxd4 {[%clk 0:02:00.2]} 20... Qxd4 {[%clk 0:01:55.5]} 21. Bxc6
{[%clk 0:02:00.2]} 21... Qxe3 {[%clk 0:01:54.7]} 22. fxe3 {[%clk 0:02:01.1]}
22... bxc6 {[%clk 0:01:54.6]} 23. Rfd1 {[%clk 0:01:56]} 23... Rfd8 {[%clk
0:01:52.8]} 24. Kf2 {[%clk 0:01:55.9]} 24... Rd5 {[%clk 0:01:50.9]} 25. Rxd5
{[%clk 0:01:53.2]} 25... cxd5 {[%clk 0:01:49.3]} 26. Rc1 {[%clk 0:01:53.1]}
26... h6 {[%clk 0:01:42.2]} 27. Rc7 {[%clk 0:01:52.5]} 27... a5 {[%clk
0:01:41.6]} 28. Ke2 {[%clk 0:01:46]} 28... a4 {[%clk 0:01:41]} 29. Kd3 {[%clk
0:01:44.6]} 29... g6 {[%clk 0:01:18.6]} 30. Kc3 {[%clk 0:01:27.3]} 30... Kg7
{[%clk 0:01:17.6]} 31. h4 {[%clk 0:01:18.1]} 31... Rb8 {[%clk 0:01:05.8]} 32. b4
{[%clk 0:00:59.4]} 32... axb3 {[%clk 0:01:01]} 33. axb3 {[%clk 0:01:00.3]} 33...
Ra8 {[%clk 0:00:56.3]} 34. b4 {[%clk 0:01:00]} 34... Ra3+ {[%clk 0:00:46.7]} 35.
Kd4 {[%clk 0:00:59.2]} 35... Rb3 {[%clk 0:00:45.7]} 36. Rb7 {[%clk 0:00:55.4]}
36... Rb2 {[%clk 0:00:30.7]} 37. g5 {[%clk 0:00:39.1]} 37... hxg5 {[%clk
0:00:29.2]} 38. hxg5 {[%clk 0:00:40]} 38... Rg2 {[%clk 0:00:28.7]} 39. b5 {[%clk
0:00:40]} 39... Rxg5 {[%clk 0:00:27.5]} 40. b6 {[%clk 0:00:39.9]} 40... Rg4+
{[%clk 0:00:27.1]} 41. Kc5 {[%clk 0:00:37.2]} 41... Rc4+ {[%clk 0:00:24.8]} 42.
Kb5 {[%clk 0:00:37.1]} 42... g5 {[%clk 0:00:23.3]} 43. Rc7 {[%clk 0:00:33.9]}
43... Re4 {[%clk 0:00:13.9]} 44. b7 {[%clk 0:00:18.5]} 1-0

[Event "*** SCC Grand Prix: Titled Tuesday Blitz"]
[Site "Chess.com"]
[Date "2020.10.13"]
[Round "1"]
[White "VinzentSpitzl"]
[Black "Ermito2020"]
[Result "0-1"]
[WhiteElo "2321"]
[BlackElo "2652"]
[TimeControl "180+1"]
[EndTime "10:07:20 PDT"]
[Termination "Ermito2020 won on time"]

1. e4 {[%clk 0:02:56]} 1... e6 {[%clk 0:03:00.5]} 2. d4 {[%clk 0:02:55.3]} 2...
d5 {[%clk 0:03:01.1]} 3. Nd2 {[%clk 0:02:55.6]} 3... Be7 {[%clk 0:03:00.1]} 4.
Ngf3 {[%clk 0:02:48.4]} 4... Nf6 {[%clk 0:02:59.5]} 5. e5 {[%clk 0:02:46.7]}
5... Nfd7 {[%clk 0:02:59.3]} 6. Bd3 {[%clk 0:02:47.2]} 6... c5 {[%clk
0:02:59.9]} 7. c3 {[%clk 0:02:47.8]} 7... Nc6 {[%clk 0:03:00.5]} 8. O-O {[%clk
0:02:45.6]} 8... g5 {[%clk 0:03:00.9]} 9. c4 {[%clk 0:02:30.5]} 9... g4 {[%clk
0:02:45.4]} 10. cxd5 {[%clk 0:02:30.3]} 10... exd5 {[%clk 0:02:38]} 11. Ne1
{[%clk 0:02:26.7]} 11... Nxd4 {[%clk 0:02:37.2]} 12. Qxg4 {[%clk 0:01:55.4]}
12... Nxe5 {[%clk 0:02:35.1]} 13. Qh5 {[%clk 0:01:54.3]} 13... Bf6 {[%clk
0:02:26]} 14. Nb3 {[%clk 0:01:34.7]} 14... Bg4 {[%clk 0:02:15.7]} 15. Qh6 {[%clk
0:01:29.8]} 15... Nxb3 {[%clk 0:01:34.1]} 16. Bb5+ {[%clk 0:01:16]} 16... Ke7
{[%clk 0:01:17.7]} 17. axb3 {[%clk 0:01:14.4]} 17... Rg8 {[%clk 0:01:17.1]} 18.
f4 {[%clk 0:00:50.3]} 18... Nc6 {[%clk 0:01:01.7]} 19. Nf3 {[%clk 0:00:28]}
19... Rg6 {[%clk 0:00:50]} 20. Qxh7 {[%clk 0:00:25.7]} 20... Qb6 {[%clk
0:00:38]} 21. Ne5 {[%clk 0:00:17.3]} 21... Bxe5 {[%clk 0:00:29.9]} 22. fxe5
{[%clk 0:00:17.6]} 22... Nxe5 {[%clk 0:00:30.8]} 23. Bf4 {[%clk 0:00:10.7]}
23... Qxb5 {[%clk 0:00:14.5]} 24. Bxe5 {[%clk 0:00:10.2]} 24... Be6 {[%clk
0:00:14.6]} 25. Qh4+ {[%clk 0:00:09.4]} 25... Kd7 {[%clk 0:00:14]} 26. Rad1
{[%clk 0:00:09.8]} 26... Qe2 {[%clk 0:00:13.4]} 27. Bg3 {[%clk 0:00:05.4]} 27...
Rag8 {[%clk 0:00:12.1]} 28. Qf4 {[%clk 0:00:05.2]} 28... Rc8 {[%clk 0:00:06.7]}
29. Qd6+ {[%clk 0:00:05]} 29... Ke8 {[%clk 0:00:06.1]} 30. Rde1 {[%clk
0:00:04.5]} 30... Qxb2 {[%clk 0:00:05.3]} 31. Re3 {[%clk 0:00:01.5]} 31... Qd4
{[%clk 0:00:04.8]} 32. Re1 {[%clk 0:00:01.6]} 32... Rd8 {[%clk 0:00:03]} 0-1

[Event "*** SCC Grand Prix: Titled Tuesday Blitz"]
[Site "Chess.com"]
[Date "2020.10.13"]
[Round "1"]
[White "thedjoker98"]
[Black "poppy73"]
[Result "1-0"]
[WhiteElo "2592"]
[BlackElo "2255"]
[TimeControl "180+1"]
[EndTime "10:07:20 PDT"]
[Termination "thedjoker98 won on time"]

1. d4 {[%clk 0:03:00.9]} 1... Nf6 {[%clk 0:02:59.2]} 2. c4 {[%clk 0:03:00.4]}
2... g6 {[%clk 0:02:58.9]} 3. Nc3 {[%clk 0:03:00.4]} 3... Bg7 {[%clk 0:02:59.3]}
4. e4 {[%clk 0:03:00.4]} 4... d6 {[%clk 0:02:59.8]} 5. f3 {[%clk 0:02:59.9]}
5... O-O {[%clk 0:02:59.4]} 6. Be3 {[%clk 0:03:00.1]} 6... c5 {[%clk 0:02:59.6]}
7. Nge2 {[%clk 0:02:59.9]} 7... Nc6 {[%clk 0:02:58.4]} 8. d5 {[%clk 0:03:00.2]}
8... Ne5 {[%clk 0:02:58.5]} 9. Ng3 {[%clk 0:03:00.7]} 9... e6 {[%clk 0:02:48.3]}
10. Be2 {[%clk 0:03:00.7]} 10... exd5 {[%clk 0:02:46.9]} 11. cxd5 {[%clk
0:03:01.6]} 11... a6 {[%clk 0:02:44.9]} 12. a4 {[%clk 0:03:00.7]} 12... Rb8
{[%clk 0:02:41.8]} 13. O-O {[%clk 0:02:54.8]} 13... h5 {[%clk 0:02:39.6]} 14. h3
{[%clk 0:02:51.9]} 14... Re8 {[%clk 0:02:27.6]} 15. Qd2 {[%clk 0:02:49.3]} 15...
Qa5 {[%clk 0:02:13.2]} 16. f4 {[%clk 0:02:02.6]} 16... Ned7 {[%clk 0:02:11.7]}
17. Bf3 {[%clk 0:02:00.6]} 17... h4 {[%clk 0:01:48.6]} 18. Nh1 {[%clk
0:01:55.2]} 18... Nb6 {[%clk 0:01:36.4]} 19. Qd3 {[%clk 0:01:39.4]} 19... Qb4
{[%clk 0:01:28.6]} 20. e5 {[%clk 0:01:37.1]} 20... Bf5 {[%clk 0:01:11.3]} 21.
Qd1 {[%clk 0:01:21.7]} 21... dxe5 {[%clk 0:01:07.1]} 22. fxe5 {[%clk 0:01:21.4]}
22... Rxe5 {[%clk 0:01:04.2]} 23. Bf2 {[%clk 0:01:13.4]} 23... Rd8 {[%clk
0:00:46.1]} 24. d6 {[%clk 0:00:56.3]} 24... Qxb2 {[%clk 0:00:36.6]} 25. Rc1
{[%clk 0:00:51.3]} 25... Re6 {[%clk 0:00:24.1]} 26. Bxc5 {[%clk 0:00:40.5]}
26... Nbd7 {[%clk 0:00:22.4]} 27. Bd4 {[%clk 0:00:28.6]} 27... Rxd6 {[%clk
0:00:18.7]} 28. Nb5 {[%clk 0:00:28.6]} 28... Rxd4 {[%clk 0:00:15]} 29. Qxd4
{[%clk 0:00:29.5]} 29... Qxd4+ {[%clk 0:00:10.4]} 30. Nxd4 {[%clk 0:00:30.4]}
30... Bd3 {[%clk 0:00:03.9]} 31. Rfd1 {[%clk 0:00:28.8]} 31... Ne5 {[%clk
0:00:04.2]} 32. Nb3 {[%clk 0:00:18.6]} 32... b5 {[%clk 0:00:04.3]} 33. axb5
{[%clk 0:00:17.6]} 33... axb5 {[%clk 0:00:03.8]} 34. Nf2 {[%clk 0:00:17.6]}
34... Rd7 {[%clk 0:00:01.4]} 35. Nc5 {[%clk 0:00:17.5]} 1-0

[Event "*** SCC Grand Prix: Titled Tuesday Blitz"]
[Site "Chess.com"]
[Date "2020.10.13"]
[Round "1"]
[White "WonderChampion"]
[Black "Mostii"]
[Result "1-0"]
[WhiteElo "2025"]
[BlackElo "2492"]
[TimeControl "180+1"]
[EndTime "10:07:23 PDT"]
[Termination "WonderChampion won on time"]

1. d4 {[%clk 0:02:59.2]} 1... e6 {[%clk 0:03:00.3]} 2. e4 {[%clk 0:02:58.5]}
2... d5 {[%clk 0:02:59.7]} 3. Nc3 {[%clk 0:02:56.8]} 3... dxe4 {[%clk
0:02:59.3]} 4. Nxe4 {[%clk 0:02:57.7]} 4... Nd7 {[%clk 0:02:59.6]} 5. c3 {[%clk
0:02:56.3]} 5... Ngf6 {[%clk 0:03:00.5]} 6. Nxf6+ {[%clk 0:02:55.1]} 6... Nxf6
{[%clk 0:03:01.4]} 7. Nf3 {[%clk 0:02:56]} 7... c5 {[%clk 0:03:01.5]} 8. Bb5+
{[%clk 0:02:54.6]} 8... Bd7 {[%clk 0:03:01.2]} 9. Bxd7+ {[%clk 0:02:54.2]} 9...
Qxd7 {[%clk 0:03:01.4]} 10. O-O {[%clk 0:02:54.8]} 10... cxd4 {[%clk 0:03:00.9]}
11. Nxd4 {[%clk 0:02:55.7]} 11... a6 {[%clk 0:02:55.9]} 12. Bg5 {[%clk
0:02:54.9]} 12... Be7 {[%clk 0:02:54.9]} 13. Bxf6 {[%clk 0:02:54.5]} 13... Bxf6
{[%clk 0:02:54.9]} 14. Nb3 {[%clk 0:02:53.2]} 14... Qc7 {[%clk 0:02:36.1]} 15.
Qc2 {[%clk 0:02:49.7]} 15... O-O {[%clk 0:02:35.6]} 16. Rad1 {[%clk 0:02:48.9]}
16... Rfd8 {[%clk 0:02:36]} 17. Rd3 {[%clk 0:02:47]} 17... Rxd3 {[%clk
0:02:35.2]} 18. Qxd3 {[%clk 0:02:47.9]} 18... Rd8 {[%clk 0:02:35.6]} 19. Qg3
{[%clk 0:02:45.1]} 19... Qxg3 {[%clk 0:02:34.2]} 20. fxg3 {[%clk 0:02:46]} 20...
b5 {[%clk 0:02:32.8]} 21. Kf2 {[%clk 0:02:41.4]} 21... a5 {[%clk 0:02:26.7]} 22.
Ke2 {[%clk 0:02:35]} 22... a4 {[%clk 0:02:24.8]} 23. Nd2 {[%clk 0:02:33.3]}
23... a3 {[%clk 0:02:23.8]} 24. bxa3 {[%clk 0:02:28.6]} 24... Bxc3 {[%clk
0:02:23.6]} 25. Ne4 {[%clk 0:02:28.7]} 25... Bd4 {[%clk 0:01:59.9]} 26. Rd1
{[%clk 0:02:27]} 26... e5 {[%clk 0:01:56]} 27. Rb1 {[%clk 0:02:25.2]} 27... f5
{[%clk 0:01:52.6]} 28. Nd2 {[%clk 0:02:23.1]} 28... Ra8 {[%clk 0:01:48.9]} 29.
Rxb5 {[%clk 0:02:21.1]} 29... Rxa3 {[%clk 0:01:48.2]} 30. Rb8+ {[%clk
0:02:10.9]} 30... Kf7 {[%clk 0:01:48.3]} 31. Rb7+ {[%clk 0:02:10.1]} 31... Kf6
{[%clk 0:01:48.7]} 32. Rb5 {[%clk 0:01:54.8]} 32... Rxa2 {[%clk 0:01:47.1]} 33.
Rb3 {[%clk 0:01:54.9]} 33... g5 {[%clk 0:01:43.2]} 34. Kd3 {[%clk 0:01:52.6]}
34... g4 {[%clk 0:01:39.6]} 35. h3 {[%clk 0:01:50.8]} 35... h5 {[%clk
0:01:38.5]} 36. h4 {[%clk 0:01:49.7]} 36... Bf2 {[%clk 0:01:16.8]} 37. Ke2
{[%clk 0:01:48.7]} 37... Bd4 {[%clk 0:01:12.4]} 38. Kd3 {[%clk 0:01:47.6]} 38...
Ra6 {[%clk 0:01:08.8]} 39. Nc4 {[%clk 0:01:45.1]} 39... Bc5 {[%clk 0:00:58.5]}
40. Rb2 {[%clk 0:01:41.1]} 40... e4+ {[%clk 0:00:55.2]} 41. Ke2 {[%clk
0:01:39.8]} 41... Bd4 {[%clk 0:00:51.8]} 42. Rd2 {[%clk 0:01:38.5]} 42... Bc3
{[%clk 0:00:51.8]} 43. Rc2 {[%clk 0:01:37.6]} 43... Be5 {[%clk 0:00:48.8]} 44.
Ne3 {[%clk 0:01:35.6]} 44... Bxg3 {[%clk 0:00:41.3]} 45. Rc5 {[%clk 0:01:32.3]}
45... f4 {[%clk 0:00:41.6]} 46. Nd5+ {[%clk 0:01:28]} 46... Ke6 {[%clk
0:00:40.6]} 47. Nc7+ {[%clk 0:01:27.3]} 47... Kd6 {[%clk 0:00:41]} 48. Nxa6
{[%clk 0:01:26.6]} 48... f3+ {[%clk 0:00:41.5]} 49. gxf3 {[%clk 0:01:24.4]}
49... exf3+ {[%clk 0:00:33]} 50. Kf1 {[%clk 0:01:21.9]} 50... Bxh4 {[%clk
0:00:30.8]} 51. Rxh5 {[%clk 0:01:21.3]} 51... Bf6 {[%clk 0:00:31.2]} 52. Rh6
{[%clk 0:01:18.9]} 52... Ke5 {[%clk 0:00:31]} 53. Nc5 {[%clk 0:01:15.1]} 53...
Bg5 {[%clk 0:00:30.5]} 54. Rh5 {[%clk 0:01:12.4]} 54... Kf5 {[%clk 0:00:27.1]}
55. Ne6 {[%clk 0:01:09.1]} 55... Kxe6 {[%clk 0:00:09.6]} 56. Rxg5 {[%clk
0:01:08.3]} 1-0

[Event "*** SCC Grand Prix: Titled Tuesday Blitz"]
[Site "Chess.com"]
[Date "2020.10.13"]
[Round "1"]
[White "guillembaches"]
[Black "Zkid"]
[Result "0-1"]
[WhiteElo "2415"]
[BlackElo "2807"]
[TimeControl "180+1"]
[EndTime "10:07:26 PDT"]
[Termination "Zkid won by resignation"]

1. e4 {[%clk 0:02:58]} 1... e6 {[%clk 0:02:58.1]} 2. d4 {[%clk 0:02:56.5]} 2...
d5 {[%clk 0:02:58.2]} 3. exd5 {[%clk 0:02:57.1]} 3... exd5 {[%clk 0:02:58.2]} 4.
Nf3 {[%clk 0:02:57.6]} 4... Nc6 {[%clk 0:02:58.4]} 5. Bb5 {[%clk 0:02:57.5]}
5... Bd6 {[%clk 0:02:58]} 6. c4 {[%clk 0:02:57.8]} 6... dxc4 {[%clk 0:02:58.2]}
7. d5 {[%clk 0:02:58.7]} 7... a6 {[%clk 0:02:58.7]} 8. Ba4 {[%clk 0:02:58.8]}
8... b5 {[%clk 0:02:58.9]} 9. dxc6 {[%clk 0:02:59.1]} 9... bxa4 {[%clk
0:02:59.2]} 10. O-O {[%clk 0:02:59]} 10... Ne7 {[%clk 0:02:59.3]} 11. Qxa4
{[%clk 0:02:59]} 11... O-O {[%clk 0:02:58.6]} 12. Nbd2 {[%clk 0:02:59.2]} 12...
Rb8 {[%clk 0:02:54.5]} 13. a3 {[%clk 0:02:58.4]} 13... c3 {[%clk 0:02:45.5]} 14.
bxc3 {[%clk 0:02:57.4]} 14... Nd5 {[%clk 0:02:44.9]} 15. Qd4 {[%clk 0:02:35.6]}
15... Be7 {[%clk 0:02:33.4]} 16. Ne4 {[%clk 0:02:15.4]} 16... f5 {[%clk
0:02:25.8]} 17. Nc5 {[%clk 0:02:09.6]} 17... Rb5 {[%clk 0:01:56.8]} 18. Nd3
{[%clk 0:01:55.3]} 18... Bf6 {[%clk 0:01:49.2]} 19. Nfe5 {[%clk 0:01:51.5]}
19... Nb6 {[%clk 0:01:44.2]} 20. f4 {[%clk 0:01:32.5]} 20... Qxd4+ {[%clk
0:01:27.5]} 21. cxd4 {[%clk 0:01:32.2]} 21... Rd8 {[%clk 0:01:28]} 22. Be3
{[%clk 0:01:24.5]} 22... Nd5 {[%clk 0:01:26.6]} 23. Bf2 {[%clk 0:01:18.7]} 23...
Nc3 {[%clk 0:01:25.2]} 24. Rfe1 {[%clk 0:01:12.7]} 24... Ne4 {[%clk 0:01:19.6]}
25. Be3 {[%clk 0:01:12.7]} 25... Be6 {[%clk 0:01:17.5]} 26. Rab1 {[%clk
0:01:09.7]} 26... Rdb8 {[%clk 0:01:17.3]} 27. Rxb5 {[%clk 0:01:05.6]} 27... Rxb5
{[%clk 0:01:18.2]} 28. Nf2 {[%clk 0:00:57.6]} 28... Bd5 {[%clk 0:01:14.5]} 29.
Nd7 {[%clk 0:00:51.1]} 29... Be7 {[%clk 0:01:05.7]} 30. Nc5 {[%clk 0:00:47.6]}
30... Nxc5 {[%clk 0:01:03.7]} 31. dxc5 {[%clk 0:00:47.6]} 31... Bxc6 {[%clk
0:01:01.3]} 32. Rc1 {[%clk 0:00:40.6]} 32... Rb3 {[%clk 0:01:00.8]} 33. Bd4
{[%clk 0:00:38.6]} 33... Rxa3 {[%clk 0:01:00.6]} 34. Re1 {[%clk 0:00:31.2]}
34... Kf7 {[%clk 0:00:53.8]} 35. h3 {[%clk 0:00:28.3]} 35... Ra4 {[%clk
0:00:51.8]} 36. Be3 {[%clk 0:00:27.7]} 36... Be4 {[%clk 0:00:51.4]} 37. Nxe4
{[%clk 0:00:24.6]} 37... Rxe4 {[%clk 0:00:52.3]} 38. Kf2 {[%clk 0:00:23.2]}
38... a5 {[%clk 0:00:49.5]} 39. Rb1 {[%clk 0:00:19.1]} 39... Ke6 {[%clk
0:00:48]} 40. Rb7 {[%clk 0:00:19.1]} 40... Kd7 {[%clk 0:00:47.5]} 41. Rb8 {[%clk
0:00:05.1]} 41... Kc6 {[%clk 0:00:46.2]} 42. Ra8 {[%clk 0:00:05.3]} 42... a4
{[%clk 0:00:45.7]} 43. Kf3 {[%clk 0:00:04.4]} 43... Bxc5 {[%clk 0:00:42.1]} 44.
Bxc5 {[%clk 0:00:04.6]} 44... Kxc5 {[%clk 0:00:43]} 45. g4 {[%clk 0:00:05]}
45... g6 {[%clk 0:00:40.7]} 46. h4 {[%clk 0:00:04.5]} 46... Kb4 {[%clk
0:00:38.5]} 47. h5 {[%clk 0:00:04.6]} 47... Re7 {[%clk 0:00:36]} 48. hxg6 {[%clk
0:00:04.4]} 48... hxg6 {[%clk 0:00:35.1]} 49. gxf5 {[%clk 0:00:02.1]} 49... gxf5
{[%clk 0:00:36]} 50. Rf8 {[%clk 0:00:02.2]} 50... a3 {[%clk 0:00:34]} 0-1